bitfinex/quotes_ETHUSD_20230116
["timestamp","ask_amount","ask_price","bid_price","bid_amount"]
[1673865599875,0.4853,1546.9,1546.7,1.1335498]
[1673865600038,8.05808678,1547.0,1546.7,1.1335498]
[1673865600246,6.75808678,1547.0,1546.7,1.1335498]
[1673865600511,8.05808678,1547.0,1546.7,1.1335498]
[1673865600877,5.05808678,1547.0,1546.7,1.1335498]
[1673865601332,5.05808678,1547.0,1546.8,0.11335498]
[1673865601554,4.57278678,1547.0,1546.7,19.5067498]
[1673865602079,4.57278678,1547.0,1546.7,19.50425434]
[1673865602260,4.57278678,1547.0,1546.7,18.3732]
[1673865602852,3.27278678,1546.9,1546.7,18.3732]
[1673865603062,3.91912596,1546.9,1546.7,18.3732]
[1673865603723,5.21912596,1546.9,1546.7,18.3732]
[1673865604641,4.57278678,1546.9,1546.7,18.3732]
[1673865605846,4.57278678,1546.9,1546.7,21.5732]
[1673865610222,1.3,1546.9,1546.7,24.7137698]
[1673865611314,1.3,1546.9,1546.7,21.5732]
[1673865611833,1.3,1546.9,1546.7,23.0672]
[1673865616003,1.3,1546.9,1546.8,1.49]
[1673865616883,1.3,1546.9,1546.7,23.0732]
[1673865617755,4.57278678,1546.9,1546.7,23.0732]
[1673865617910,3.27278678,1546.8,1546.7,21.5732]
[1673865619493,3.27278678,1546.8,1546.7,3.2]
[1673865619705,3.91912596,1546.8,1546.7,3.2]
[1673865620059,6.91912596,1546.8,1546.7,3.2]
[1673865620422,20.91912596,1546.8,1546.7,3.2]
[1673865620666,21.40442596,1546.8,1546.7,3.2]
[1673865621071,26.40442596,1546.8,1546.7,3.2]
[1673865624036,26.40442596,1546.8,1546.7,3.19745488]
[1673865624415,25.75808678,1546.8,1546.7,3.19745488]
[1673865624683,26.40442596,1546.8,1546.7,3.19745488]
[1673865629040,21.40442596,1546.8,1546.7,3.19745488]
[1673865630577,26.40442596,1546.8,1546.7,3.19745488]
[1673865632618,26.40442596,1546.8,1546.7,3.58934344]
[1673865634092,34.63442596,1546.8,1546.7,3.58934344]
[1673865636851,34.40442596,1546.8,1546.7,3.58934344]
[1673865637090,33.27278678,1546.8,1546.7,3.58934344]
[1673865637576,25.27278678,1546.8,1546.7,3.58934344]
[1673865638441,25.28028478,1546.8,1546.7,3.58934344]
[1673865639970,20.28028478,1546.8,1546.7,3.58934344]
[1673865641676,25.28028478,1546.8,1546.7,3.58934344]
[1673865642646,26.57296314,1546.8,1546.7,3.58934344]
[1673865642869,26.64192396,1546.8,1546.7,3.58934344]
[1673865644706,25.99558478,1546.8,1546.7,3.58934344]
[1673865645280,25.76558478,1546.8,1546.7,3.58934344]
[1673865645443,25.28028478,1546.8,1546.7,3.58934344]
[1673865648866,25.28028478,1546.8,1546.7,20.99854689]
[1673865650418,8.28028478,1546.8,1546.7,20.99854689]
[1673865650630,3.28028478,1546.8,1546.7,20.99854689]
[1673865651244,0.007498,1546.8,1546.7,23.24875138]
[1673865651727,0.007498,1546.8,1546.7,24.75175138]
[1673865652062,0.00463879,1546.8,1546.7,24.75175138]
[1673865655443,0.00463879,1546.8,1546.7,25.07965138]
[1673865655880,0.00463879,1546.8,1546.7,24.75175138]
[1673865657681,0.00063879,1546.8,1546.7,31.84848742]
[1673865657902,0.00063879,1546.8,1546.7,26.24275138]
[1673865658516,0.00063879,1546.8,1546.7,28.74275138]
[1673865664663,0.00063879,1546.8,1546.7,35.52975138]
[1673865664987,0.00063879,1546.8,1546.7,35.75975138]
[1673865666138,0.00063879,1546.8,1546.7,44.36548742]
[1673865666307,0.00063879,1546.8,1546.7,44.69328742]
[1673865666714,0.00063879,1546.8,1546.7,47.9660742]
[1673865667570,0.00063879,1546.8,1546.7,42.36033816]
[1673865671843,0.00063879,1546.8,1546.7,47.9660742]
[1673865673667,0.00063879,1546.8,1546.7,42.36033816]
[1673865674241,1.7851,1547.4,1547.0,13.25041121]
[1673865674447,1.7851,1547.4,1547.1,17.572]
[1673865674601,1.7851,1547.4,1547.1,49.89017]
[1673865674966,0.4851,1547.4,1547.1,49.89017]
[1673865675963,0.4851,1547.4,1547.1,55.55816288]
[1673865680800,0.53003855,1547.5,1547.1,55.55816288]
[1673865683479,0.53003855,1547.5,1547.2,1.503]
[1673865683696,0.04493855,1547.5,1547.3,25.85148]
[1673865684002,0.04493855,1547.5,1547.4,36.76165]
[1673865684213,0.04493855,1547.5,1547.4,41.084102]
[1673865687272,0.04493855,1547.5,1547.4,42.587102]
[1673865687585,0.04493855,1547.5,1547.4,52.104102]
[1673865688195,0.04493855,1547.5,1547.4,61.467302]
[1673865693836,8.55e-06,1547.5,1547.4,61.467302]
[1673865696874,8.55e-06,1547.5,1547.4,64.467302]
[1673865698941,8.55e-06,1547.5,1547.4,74.84628234]
[1673865699131,0.04037375,1547.7,1547.6,0.49913167]
[1673865699305,0.04037375,1547.7,1547.6,35.84418484]
[1673865699937,0.04037375,1547.7,1547.6,45.43858484]
[1673865701936,0.04037375,1547.7,1547.6,48.63858484]
[1673865702149,0.00037375,1547.7,1547.6,55.10019484]
[1673865702612,0.00037375,1547.7,1547.6,60.6342959]
[1673865702767,0.00037375,1547.7,1547.6,55.10019484]
[1673865704383,0.00037375,1547.7,1547.6,63.90708288]
[1673865704611,0.00037375,1547.7,1547.6,66.90708384]
[1673865705007,0.00037375,1547.7,1547.6,61.37298162]
[1673865705939,0.00037375,1547.7,1547.6,62.87598162]
[1673865707530,1.09e-06,1547.8,1547.7,13.24818]
[1673865707746,0.04790387,1548.1,1547.7,47.72531194]
[1673865707922,0.04790387,1548.1,1548.0,27.34276]
[1673865708448,0.04790387,1548.1,1548.0,27.57276]
[1673865709505,0.04790387,1548.1,1548.0,35.86276]
[1673865709952,0.04790387,1548.1,1548.0,52.2404]
[1673865710172,0.04790387,1548.1,1548.0,57.71444]
[1673865711505,0.04790387,1548.1,1548.0,51.2545]
[1673865712063,0.04790387,1548.1,1548.0,49.7515]
[1673865713755,0.04790387,1548.1,1548.0,48.62645666]
[1673865717652,0.04790387,1548.1,1548.0,41.83945666]
[1673865719208,0.04790387,1548.1,1548.0,48.62645666]
[1673865723830,0.04790387,1548.1,1548.0,26.21771666]
[1673865724328,1.29790387,1548.1,1548.0,26.21771666]
[1673865724549,0.04790387,1548.1,1548.0,26.21771666]
[1673865731313,0.04790387,1548.1,1548.0,19.75480702]
[1673865737586,0.04790387,1548.1,1548.0,13.29486702]
[1673865737794,0.04790387,1548.1,1548.0,6.83492702]
[1673865738319,0.04790387,1548.1,1548.0,13.29486702]
[1673865741261,1.29790387,1548.1,1548.0,0.37795666]
[1673865741888,1.78280387,1548.1,1548.0,0.37795666]
[1673865743267,1.29790387,1548.1,1548.0,0.37795666]
[1673865744293,4.57069065,1548.1,1548.0,0.37795666]
[1673865746302,19.47465065,1548.1,1548.0,0.37795666]
[1673865746496,25.93418065,1548.1,1548.0,0.37795666]
[1673865747073,28.93418065,1548.1,1548.0,0.37795666]
[1673865749061,33.93418065,1548.1,1548.0,0.37795666]
[1673865751044,35.23418065,1548.1,1548.0,0.37795666]
[1673865752193,35.23418065,1548.1,1548.0,0.37548679]
[1673865754941,28.77465065,1548.1,1548.0,0.37548679]
[1673865755157,10.37069065,1548.1,1548.0,0.37548679]
[1673865755409,10.85559065,1548.1,1548.0,0.37548679]
[1673865755837,15.85559065,1548.1,1548.0,0.37548679]
[1673865756145,14.35559065,1548.1,1548.0,0.37548679]
[1673865756366,6.83280387,1548.1,1548.0,0.37548679]
[1673865756577,6.34790387,1548.1,1548.0,8.16502647]
[1673865756726,6.34790387,1548.1,1548.0,14.62496647]
[1673865756936,1.34790387,1548.1,1548.0,30.79196647]
[1673865757624,1.34790387,1548.1,1548.0,37.81560752]
[1673865757795,1.34790387,1548.1,1548.0,32.51096647]
[1673865758431,1.34790387,1548.1,1548.0,35.01096647]
[1673865758654,1.34790387,1548.1,1548.0,33.52196647]
[1673865758867,1.34790387,1548.1,1548.0,39.98190647]
[1673865760629,1.34790387,1548.1,1548.0,37.25190647]
[1673865762780,1.34790387,1548.1,1548.0,37.48190647]
[1673865767460,1.34790387,1548.1,1548.0,37.25190647]
[1673865768088,1.34790387,1548.1,1548.0,35.92230679]
[1673865771138,1.34790387,1548.1,1548.0,23.00242679]
[1673865773919,18.18608983,1548.1,1548.0,0.37548679]
[1673865774250,18.67098983,1548.1,1548.0,0.37548679]
[1673865774463,21.67098983,1548.1,1548.0,0.37548679]
[1673865775248,21.67098983,1548.1,1548.0,0.37346802]
[1673865775494,15.21145983,1548.1,1548.0,0.37346802]
[1673865777204,21.67098983,1548.1,1548.0,0.37346802]
[1673865777565,26.67098983,1548.1,1548.0,0.37346802]
[1673865778457,20.21145983,1548.1,1548.0,0.37346802]
[1673865782529,13.75192983,1548.1,1548.0,0.37346802]
[1673865783777,8.75192983,1548.1,1548.0,0.37346802]
[1673865784617,20.21145983,1548.1,1548.0,0.37346802]
[1673865785650,19.56512065,1548.1,1548.0,0.37346802]
[1673865785858,13.10559065,1548.1,1548.0,0.37346802]
[1673865788757,1.34790387,1548.1,1548.0,13.29334802]
[1673865788907,1.34790387,1548.1,1548.0,30.91174802]
[1673865790795,1.34790387,1548.1,1548.0,34.64895582]
[1673865791009,1.34790387,1548.1,1548.0,41.10889582]
[1673865797447,11.72655983,1548.1,1548.0,17.98905595]
[1673865799077,14.72655983,1548.1,1548.0,17.98905595]
[1673865799859,14.08022065,1548.1,1548.0,17.98905595]
[1673865800280,19.08022065,1548.1,1548.0,17.98905595]
[1673865802318,32.64561983,1548.1,1548.0,17.98905595]
[1673865803758,40.64561983,1548.1,1548.0,0.37065595]
[1673865803991,41.13051983,1548.1,1548.0,0.37065595]
[1673865809049,20.21145983,1548.1,1548.0,0.37065595]
[1673865809267,13.75192983,1548.1,1548.0,0.37065595]
[1673865809890,6.34790387,1548.1,1548.0,7.51369555]
[1673865810063,1.34790387,1548.1,1548.0,24.96149555]
[1673865813143,1.34790387,1548.1,1548.0,31.42143555]
[1673865813351,1.34790387,1548.1,1548.0,37.88137555]
[1673865813585,1.34790387,1548.1,1548.0,39.37137555]
[1673865814225,1.34427469,1548.1,1548.0,39.37137555]
[1673865816662,1.34427469,1548.1,1548.0,40.87237555]
[1673865816878,1.34427469,1548.1,1548.0,49.13754981]
[1673865817995,1.34427469,1548.1,1548.0,49.46224981]
[1673865818248,1.34427469,1548.1,1548.0,56.24924981]
[1673865818440,0.04098137,1548.2,1548.1,26.30351498]
[1673865818650,0.04098137,1548.2,1548.1,44.71112283]
[1673865819249,0.04098137,1548.2,1548.1,51.49812283]
[1673865819506,0.04098137,1548.2,1548.1,51.49864175]
[1673865819657,0.04098137,1548.2,1548.1,46.00611498]
[1673865821086,0.00098137,1548.2,1548.1,54.76987787]
[1673865821256,0.00098137,1548.2,1548.1,58.09377787]
[1673865821476,0.00098137,1548.2,1548.1,52.60280176]
[1673865822393,0.00098137,1548.2,1548.1,58.09325077]
[1673865822647,0.00098137,1548.2,1548.1,52.60280176]
[1673865822884,0.00098137,1548.2,1548.1,58.09325245]
[1673865823189,0.00098137,1548.2,1548.1,52.60280176]
[1673865823769,6.274e-05,1548.3,1548.1,58.0937696]
[1673865823977,0.07016937,1548.5,1548.4,6.787]
[1673865824200,6.937e-05,1548.5,1548.4,57.81666465]
[1673865824446,0.05880014,1548.7,1548.4,60.22286465]
[1673865824657,0.05880014,1548.7,1548.6,3.002]
[1673865824878,0.05880014,1548.7,1548.6,30.29066]
[1673865826141,0.05880014,1548.7,1548.6,28.78966]
[1673865826716,0.05880014,1548.7,1548.6,38.62096]
[1673865830637,0.05880014,1548.7,1548.6,32.16352]
[1673865833579,0.05880014,1548.7,1548.6,31.93352]
[1673865833794,0.05880014,1548.7,1548.4,29.22328]
[1673865833795,1.30880014,1548.7,1548.5,12.91549]
[1673865834698,0.05880014,1548.7,1548.5,12.91549]
[1673865834959,0.05880014,1548.7,1548.4,30.6407]
[1673865835124,0.05880014,1548.7,1548.5,12.91536]
[1673865837602,0.05880014,1548.7,1548.5,19.37322]
[1673865844838,0.05880014,1548.7,1548.5,19.3707887]
[1673865846032,0.05880014,1548.7,1548.5,20.8587887]
[1673865847494,0.05880014,1548.7,1548.6,1.487]
[1673865847711,0.05880014,1548.7,1548.6,23.17509887]
[1673865851463,0.05880014,1548.7,1548.6,27.17209887]
[1673865852101,0.05880014,1548.7,1548.6,32.66514211]
[1673865852553,0.05880014,1548.7,1548.6,42.08344211]
[1673865852897,0.05880014,1548.7,1548.6,48.87044211]
[1673865853203,0.05880014,1548.7,1548.6,52.14322889]
[1673865853784,0.05880014,1548.7,1548.6,46.65018565]
[1673865856873,0.05880014,1548.7,1548.6,33.86039887]
[1673865857038,0.05880014,1548.7,1548.6,32.37339887]
[1673865857895,0.05880014,1548.7,1548.6,32.60339887]
[1673865867461,0.05880014,1548.7,1548.6,30.51762]
[1673865867671,1.30880014,1548.7,1548.6,29.02062]
[1673865867906,1.30880014,1548.7,1548.6,19.60232]
[1673865868652,0.05880014,1548.7,1548.6,19.60232]
[1673865872544,1.30880014,1548.7,1548.6,6.45744]
[1673865872701,1.43968015,1548.7,1548.6,6.45744]
[1673865872907,11.16948693,1548.7,1548.4,19.7653]
[1673865873121,3.27278678,1548.6,1548.4,19.7653]
[1673865874385,1.92438015,1548.7,1548.4,19.7653]
[1673865874709,5.19716693,1548.7,1548.4,19.7653]
[1673865874938,5.06628692,1548.7,1548.4,19.7653]
[1673865875150,5.06628692,1548.7,1548.4,26.22349]
[1673865875745,5.06628692,1548.7,1548.4,32.68176]
[1673865877161,0.54350014,1548.7,1548.4,39.14003]
[1673865877334,0.05880014,1548.7,1548.4,39.14003]
[1673865889049,0.05880014,1548.7,1548.4,39.13788471]
[1673865893814,3.33158692,1548.7,1548.4,39.13788471]
[1673865894026,9.78865692,1548.7,1548.4,26.22134471]
[1673865894251,16.24572692,1548.7,1548.4,26.22134471]
[1673865895499,0.05880014,1548.7,1548.4,39.13788471]
[1673865904435,3.33158692,1548.7,1548.4,32.67961471]
[1673865905078,3.33158692,1548.7,1548.4,26.22134471]
[1673865905289,9.78862692,1548.7,1548.4,26.22134471]
[1673865906709,3.27278678,1548.6,1548.4,19.76315471]
[1673865907229,4.57278678,1548.6,1548.4,19.76315471]
[1673865907655,11.03024678,1548.6,1548.4,19.76315471]
[1673865908699,17.48770678,1548.6,1548.4,19.76315471]
[1673865908910,11.03024678,1548.6,1548.4,19.76315471]
[1673865909496,11.03024678,1548.6,1548.4,19.76001723]
[1673865909912,4.57278678,1548.6,1548.4,26.21828723]
[1673865910546,4.57278678,1548.6,1548.4,32.67655723]
[1673865910789,4.57278678,1548.6,1548.4,26.21828723]
[1673865911616,4.47278678,1548.6,1548.4,26.21828723]
[1673865914377,4.47278678,1548.6,1548.4,19.76001723]
[1673865914571,4.95758678,1548.6,1548.4,19.76001723]
[1673865916447,4.47278678,1548.6,1548.4,19.76001723]
[1673865920592,4.47278678,1548.6,1548.4,26.21827723]
[1673865920809,4.47278678,1548.6,1548.4,39.13481723]
[1673865921446,1.3,1548.6,1548.4,39.13481723]
[1673865922227,1.3,1548.6,1548.4,44.65703195]
[1673865924352,1.29735152,1548.6,1548.4,44.65703195]
[1673865929374,1.29735152,1548.6,1548.4,39.13481723]
[1673865929726,1.29735152,1548.6,1548.5,0.36237676]
[1673865929933,1.29735152,1548.6,1548.5,19.73595676]
[1673865932411,1.29735152,1548.6,1548.5,13.27809676]
[1673865933735,4.5701383,1548.6,1548.5,6.82023676]
[1673865933894,4.70575347,1548.6,1548.5,6.82023676]
[1673865934858,4.70575347,1548.6,1548.5,13.27809676]
[1673865939346,4.70575347,1548.6,1548.5,6.82023676]
[1673865943915,4.5701383,1548.6,1548.5,13.27809676]
[1673865945805,4.5701383,1548.6,1548.5,6.82023676]
[1673865948123,4.5701383,1548.6,1548.5,6.81822849]
[1673865950392,4.5701383,1548.6,1548.5,0.36036849]
[1673865955676,12.5701383,1548.6,1548.5,0.36036849]
[1673865955843,35.0549383,1548.6,1548.4,19.76001723]
[1673865956058,6.75758678,1548.5,1548.4,19.76001723]
[1673865958168,11.75758678,1548.5,1548.4,19.76001723]
[1673865958805,11.27278678,1548.5,1548.4,19.76001723]
[1673865959050,12.57278678,1548.5,1548.4,19.76001723]
[1673865964412,7.57278678,1548.5,1548.4,19.76001723]
[1673865965243,12.57278678,1548.5,1548.4,19.76001723]
[1673865966417,19.03064678,1548.5,1548.4,19.76001723]
[1673865968357,12.57278678,1548.5,1548.4,19.76001723]
[1673865968573,12.57278678,1548.5,1548.4,26.21828723]
[1673865970919,7.57278678,1548.5,1548.4,26.21828723]
[1673865971876,7.57278678,1548.5,1548.4,32.67655723]
[1673865972250,7.57278678,1548.5,1548.4,26.21828723]
[1673865974622,7.57278678,1548.5,1548.4,19.76001723]
[1673865979188,7.57278678,1548.5,1548.4,19.75693165]
[1673865982997,32.59270596,1548.5,1548.4,0.00093165]
[1673865983185,33.07750596,1548.5,1548.4,0.00093165]
[1673865991817,32.43116678,1548.5,1548.4,0.00093165]
[1673865992022,33.07750596,1548.5,1548.4,0.00093165]
[1673865992229,33.07750596,1548.5,1548.0,10.0786]
[1673865992230,0.00106835,1548.3,1548.0,10.0786]
[1673865992463,45.13501678,1548.2,1548.0,10.0786]
[1673865992799,19.19184678,1548.1,1548.0,10.0786]
[1673865992985,19.83818596,1548.1,1548.0,10.0786]
[1673865993322,19.83818596,1548.1,1547.9,13.5917]
[1673865993534,3.27278678,1548.0,1547.9,13.5917]
[1673865993846,6.27278678,1548.0,1547.9,13.5917]
[1673865994429,7.57278678,1548.0,1547.9,13.5917]
[1673865994802,7.57278678,1548.0,1547.9,13.5417]
[1673865994953,12.57278678,1548.0,1547.9,13.5417]
[1673865996473,7.57278678,1548.0,1547.9,13.5417]
[1673865998228,14.03272678,1548.0,1547.9,13.5417]
[1673865999739,14.03272678,1548.0,1547.9,16.7417]
[1673866000737,26.95260678,1548.0,1547.9,3.2]
[1673866000947,32.59894596,1548.0,1547.9,3.2]
[1673866009719,26.13900596,1548.0,1547.9,3.2]
[1673866010177,25.49266678,1548.0,1547.9,3.2]
[1673866011990,12.57278678,1548.0,1547.9,3.2]
[1673866014086,19.03272678,1548.0,1547.9,3.2]
[1673866016863,19.03272678,1548.0,1547.9,3.19788998]
[1673866017397,1.3,1548.0,1547.9,11.48669264]
[1673866018122,1.3,1548.0,1547.9,17.94705264]
[1673866024326,1.3,1548.0,1547.9,11.48669264]
[1673866024536,1.3,1548.0,1547.9,11.15624998]
[1673866024746,1.3,1548.0,1547.9,9.65824998]
[1673866026236,1.3,1548.0,1547.9,3.19788998]
[1673866028945,11.03272678,1548.0,1547.9,3.19788998]
[1673866033373,20.49266678,1548.0,1547.9,3.19788998]
[1673866035042,26.95260678,1548.0,1547.9,3.19788998]
[1673866035790,46.59894596,1548.0,1547.9,3.19788998]
[1673866035986,47.08394596,1548.0,1547.9,3.19788998]
[1673866036671,47.08394596,1548.0,1547.9,3.51615175]
[1673866038036,47.31394596,1548.0,1547.9,3.51615175]
[1673866038927,47.31394596,1548.0,1547.9,3.51276987]
[1673866039835,47.31394596,1548.0,1547.8,0.1065366]
[1673866040028,31.13886678,1547.9,1547.8,0.1065366]
[1673866040239,39.13886678,1547.9,1547.8,0.1065366]
[1673866040480,39.78520596,1547.9,1547.8,0.1065366]
[1673866040978,41.08520596,1547.9,1547.8,0.1065366]
[1673866041871,41.08520596,1547.9,1547.7,0.11391098]
[1673866042078,17.91912596,1547.8,1547.7,0.11391098]
[1673866042286,45.30146596,1547.8,1547.7,0.11391098]
[1673866043153,46.60146596,1547.8,1547.7,0.11391098]
[1673866043302,46.60146596,1547.8,1547.6,0.10287075]
[1673866043667,30.65638678,1547.7,1547.6,0.10287075]
[1673866044087,11.27278678,1547.7,1547.6,0.10287075]
[1673866044474,11.27278678,1547.7,1547.6,1.38187075]
[1673866044690,12.57278678,1547.7,1547.6,0.10287075]
[1673866045116,7.57278678,1547.7,1547.6,0.10287075]
[1673866047085,7.57278678,1547.7,1547.6,0.10287075]
[1673866050727,7.57278678,1547.7,1547.6,3.30287075]
[1673866051293,14.03398678,1547.7,1547.6,3.30287075]
[1673866052029,14.03398678,1547.7,1547.6,0.10287075]
[1673866054660,12.57278678,1547.7,1547.6,0.10287075]
[1673866054878,13.05788678,1547.7,1547.6,0.10287075]
[1673866056170,8.05788678,1547.7,1547.6,0.10287075]
[1673866057531,13.05788678,1547.7,1547.6,0.10287075]
[1673866060963,32.44148678,1547.7,1547.6,0.10287075]
[1673866062992,13.05788678,1547.7,1547.6,1.38187075]
[1673866063363,12.57278678,1547.7,1547.6,0.10287075]
[1673866064674,7.57278678,1547.7,1547.6,0.10287075]
[1673866066462,7.57278678,1547.7,1547.6,0.09915524]
[1673866066833,12.57278678,1547.7,1547.6,0.09915524]
[1673866069577,25.49518678,1547.7,1547.6,0.09915524]
[1673866070510,40.60272596,1547.7,1547.6,0.09915524]
[1673866072553,34.14152596,1547.7,1547.6,0.09915524]
[1673866076705,40.60272596,1547.7,1547.6,0.09915524]
[1673866079505,40.60272596,1547.7,1547.6,0.07915524]
[1673866079739,40.83272596,1547.7,1547.6,0.07915524]
[1673866080228,41.31782596,1547.7,1547.6,0.07915524]
[1673866083711,40.67148678,1547.7,1547.6,0.07915524]
[1673866084150,41.31782596,1547.7,1547.6,0.07915524]
[1673866084781,41.08782596,1547.7,1547.6,0.07915524]
[1673866085921,28.16542596,1547.7,1547.6,0.07915524]
[1673866086128,26.14152596,1547.7,1547.6,0.07915524]
[1673866086473,32.60272596,1547.7,1547.6,0.07915524]
[1673866089421,33.08782596,1547.7,1547.6,0.07915524]
[1673866089638,33.31782596,1547.7,1547.6,0.07915524]
[1673866097469,34.12056348,1547.7,1547.6,0.07915524]
[1673866103303,34.12056348,1547.7,1547.6,0.07595979]
[1673866103993,29.12056348,1547.7,1547.6,0.07595979]
[1673866105088,34.12056348,1547.7,1547.6,0.07595979]
[1673866105242,35.60656348,1547.7,1547.6,0.07595979]
[1673866107653,35.60656348,1547.7,1547.2,15.1690353]
[1673866107654,0.06993244,1547.5,1547.2,15.1690353]
[1673866107976,33.38861,1547.3,1547.2,15.1690353]
[1673866108122,39.66139678,1547.3,1547.2,15.1690353]
[1673866108543,40.96139678,1547.3,1547.2,15.1690353]
[1673866108863,45.96139678,1547.3,1547.2,15.1690353]
[1673866112967,45.96139678,1547.3,1547.2,0.1124353]
[1673866113384,46.60773596,1547.3,1547.2,0.1124353]
[1673866113590,46.60773596,1547.3,1547.1,23.75835631]
[1673866113909,30.66262678,1547.2,1547.1,23.75835631]
[1673866114743,31.96262678,1547.2,1547.1,14.33065631]
[1673866115371,19.03606678,1547.2,1547.1,14.33065631]
[1673866121379,25.49934678,1547.2,1547.1,14.33065631]
[1673866123273,31.96262678,1547.2,1547.1,14.33065631]
[1673866123693,25.49934678,1547.2,1547.1,14.33065631]
[1673866124311,31.96262678,1547.2,1547.1,14.33065631]
[1673866124522,25.49934678,1547.2,1547.1,14.33065631]
[1673866124779,39.96262678,1547.2,1547.1,0.10995631]
[1673866127264,40.44782678,1547.2,1547.1,0.10995631]
[1673866129562,19.03606678,1547.2,1547.1,0.10995631]
[1673866129778,25.49934678,1547.2,1547.1,0.10995631]
[1673866131343,32.60896596,1547.2,1547.1,0.10995631]
[1673866131507,33.32416596,1547.2,1547.1,0.10995631]
[1673866131707,33.32416596,1547.2,1547.1,0.04783218]
[1673866132132,33.32416596,1547.2,1547.0,0.12828588]
[1673866132338,25.27278678,1547.1,1547.0,0.12828588]
[1673866132588,46.20018678,1547.1,1546.9,23.386]
[1673866132802,6.27278678,1547.0,1546.9,23.386]
[1673866133014,20.27278678,1547.0,1546.9,23.386]
[1673866133440,25.27278678,1547.0,1546.9,13.9778]
[1673866133826,26.57278678,1547.0,1546.9,13.9778]
[1673866134250,33.03690678,1547.0,1546.9,13.9778]
[1673866134461,45.96514678,1547.0,1546.9,13.9778]
[1673866134864,39.50102678,1547.0,1546.9,13.9778]
[1673866135340,45.96514678,1547.0,1546.9,13.9778]
[1673866136043,53.96514678,1547.0,1546.9,13.9778]
[1673866138426,33.03690678,1547.0,1546.9,13.9778]
[1673866139101,27.03690678,1547.0,1546.9,13.9778]
[1673866139284,33.50102678,1547.0,1546.9,13.9778]
[1673866139494,33.50102678,1547.0,1546.9,13.9678]
[1673866140572,12.57278678,1547.0,1546.9,13.9678]
[1673866141293,19.03690678,1547.0,1546.9,13.9678]
[1673866141742,25.50102678,1547.0,1546.9,13.9678]
[1673866142592,31.96514678,1547.0,1546.9,13.9678]
[1673866143278,31.96298704,1547.0,1546.9,13.9678]
[1673866144864,39.96298704,1547.0,1546.9,13.9678]
[1673866145108,40.44828704,1547.0,1546.9,13.9678]
[1673866147486,40.44828704,1547.0,1546.9,13.0385]
[1673866147924,40.44828704,1547.0,1546.8,0.14431493]
[1673866148143,22.27278678,1546.9,1546.8,0.14431493]
[1673866148350,41.66640678,1546.9,1546.8,0.14431493]
[1673866148565,44.66640678,1546.9,1546.8,0.14431493]
[1673866149890,45.96640678,1546.9,1546.8,0.14431493]
[1673866151287,46.19640678,1546.9,1546.8,0.14431493]
[1673866151492,47.32804596,1546.9,1546.8,0.14431493]
[1673866152333,46.84274596,1546.9,1546.8,0.14431493]
[1673866152846,46.61274596,1546.9,1546.8,0.14431493]
[1673866153216,46.84274596,1546.9,1546.8,0.14431493]
[1673866153796,46.61274596,1546.9,1546.8,0.14431493]
[1673866160363,41.61274596,1546.9,1546.8,0.14431493]
[1673866163904,46.61274596,1546.9,1546.8,0.14431493]
[1673866165457,40.14820596,1546.9,1546.8,4.30931493]
[1673866165667,33.68366596,1546.9,1546.8,4.30931493]
[1673866166669,13.21912596,1546.9,1546.8,4.30931493]
[1673866166861,12.57278678,1546.9,1546.8,4.74024642]
[1673866167082,9.57278678,1546.9,1546.8,6.23924642]
[1673866167999,4.57278678,1546.9,1546.8,6.23924642]
[1673866169021,1.3,1546.9,1546.8,6.23629118]
[1673866172175,1.3,1546.9,1546.8,12.70124118]
[1673866179625,1.3,1546.9,1546.8,4.95729118]
[1673866179858,1.3,1546.9,1546.8,3.56729118]
[1673866180626,1.3,1546.9,1546.8,3.13635969]
[1673866181316,4.57278678,1546.9,1546.8,3.13635969]
[1673866181800,17.50186678,1546.9,1546.8,3.13635969]
[1673866182015,17.50186678,1546.9,1546.8,1.64035969]
[1673866182217,11.03732678,1546.9,1546.8,1.64035969]
[1673866184956,11.03357378,1546.9,1546.8,1.64035969]
[1673866186623,4.56903378,1546.9,1546.8,1.64035969]
[1673866187044,11.03357378,1546.9,1546.8,1.64035969]
[1673866189983,4.56903378,1546.9,1546.8,1.64035969]
[1673866191671,17.49811378,1546.9,1546.8,1.64035969]
[1673866192405,11.03357378,1546.9,1546.8,1.64035969]
[1673866193343,1.296247,1546.9,1546.8,1.64035969]
[1673866193549,1.296247,1546.9,1546.8,8.10530969]
[1673866195200,1.296247,1546.9,1546.8,6.60630969]
[1673866196020,1.296247,1546.9,1546.8,8.10330969]
[1673866196969,1.296247,1546.9,1546.8,24.63257166]
[1673866201169,1.296247,1546.9,1546.8,18.16762166]
[1673866203487,1.296247,1546.9,1546.8,24.63257166]
[1673866207594,14.0,1547.1,1546.9,0.286753]
[1673866207756,17.0,1547.2,1547.0,20.88336]
[1673866207962,17.0,1547.2,1547.0,21.5093713]
[1673866207963,3.0,1547.1,1547.0,21.5093713]
[1673866208206,3.0,1547.1,1547.0,23.0103713]
[1673866208704,4.3,1547.1,1547.0,23.0103713]
[1673866213783,4.3,1547.1,1547.0,16.5462513]
[1673866214157,4.3,1547.1,1547.0,10.0821313]
[1673866215219,4.3,1547.1,1547.0,16.5462513]
[1673866220914,1.3,1547.1,1547.0,16.5462513]
[1673866223470,1.3,1547.1,1547.0,14.42924]
[1673866224507,1.3,1547.1,1547.0,7.96512]
[1673866227547,1.3,1547.1,1546.0,10.0]
[1673866227759,1.3,1547.1,1547.0,1.49]
[1673866232400,1.3,1547.1,1547.0,1.502]
[1673866232844,1.3,1547.1,1547.0,1.85421321]
[1673866235453,7.7637,1547.1,1547.0,1.85421321]
[1673866235665,10.7637,1547.1,1547.0,0.35221321]
[1673866237038,11.2489,1547.1,1547.0,0.35221321]
[1673866237819,4.7852,1547.1,1547.0,0.35221321]
[1673866239784,4.7352,1547.1,1547.0,0.35221321]
[1673866240335,17.6626,1547.1,1547.0,0.35221321]
[1673866244377,17.1774,1547.1,1547.0,0.35221321]
[1673866245679,10.7137,1547.1,1547.0,0.35221321]
[1673866251310,10.7137,1547.1,1547.0,3.11921321]
[1673866251311,4.25,1547.1,1547.0,3.11921321]
[1673866251570,4.25,1547.1,1547.0,11.18812753]
[1673866251571,1.25,1547.1,1547.0,11.18812753]
[1673866251882,4.25,1547.1,1547.0,3.44500753]
[1673866252091,4.25,1547.1,1547.0,0.35221321]
[1673866254400,10.7137,1547.1,1547.0,0.35221321]
[1673866254788,18.7137,1547.1,1547.0,0.35221321]
[1673866256211,28.45018678,1547.1,1547.0,0.35221321]
[1673866259681,28.45018678,1547.1,1547.0,0.28221321]
[1673866262708,28.45018678,1547.1,1547.0,0.23221321]
[1673866267764,34.91388678,1547.1,1547.0,0.23221321]
[1673866267984,34.91388678,1547.1,1547.0,0.19145651]
[1673866279295,15.52278678,1547.1,1547.0,0.19145651]